bitfinex/quotes_ETHUSD_20260213
["timestamp","ask_amount","ask_price","bid_price","bid_amount"]
[1770946209601,0.92701604,1943.8,1942.8,0.001]
[1770946209799,0.92701604,1943.8,1942.8,1.2877887]
[1770946210000,1.28618077,1943.8,1942.8,0.93667106]
[1770946210369,0.92701604,1943.7,1942.8,0.93667106]
[1770946211208,1.28618077,1943.8,1942.8,0.93667106]
[1770946211574,2.21319681,1943.8,1942.8,0.93667106]
[1770946211900,1.28618077,1943.8,1942.9,1.28673632]
[1770946212274,1.28618077,1943.8,1942.9,2.22240738]
[1770946213792,0.92701604,1943.7,1942.9,1.28673632]
[1770946214110,1.28627289,1943.6,1942.8,0.001]
[1770946215196,0.92701604,1943.5,1942.8,0.001]
[1770946215408,0.92701604,1943.5,1943.0,0.001]
[1770946216217,1.28639007,1943.5,1943.0,0.001]
[1770946216511,1.258,1943.8,1943.0,0.001]
[1770946216683,0.92701604,1943.7,1943.0,0.001]
[1770946218007,1.258,1943.8,1943.0,0.001]
[1770946218208,1.28620671,1943.7,1943.0,0.001]
[1770946218728,1.258,1943.8,1943.0,0.001]
[1770946218898,2.54416263,1943.8,1943.0,0.93667106]
[1770946219789,2.54416263,1943.8,1943.0,0.001]
[1770946219790,0.92701604,1943.7,1943.0,0.001]
[1770946220220,1.28627289,1943.6,1943.0,0.001]
[1770946222012,1.28625927,1943.7,1943.0,0.001]
[1770946222215,1.258,1943.8,1943.2,0.93567106]
[1770946223643,2.54415286,1943.8,1943.1,1.28660388]
[1770946223995,2.54415286,1943.8,1943.0,1.494]
[1770946224338,2.54415286,1943.8,1943.0,2.78066285]
[1770946224339,3.4711689,1943.8,1943.0,2.78066285]
[1770946224732,2.54415286,1943.8,1943.0,2.78066285]
[1770946224894,2.54415286,1943.8,1943.0,3.71633391]
[1770946226425,1.258,1943.8,1943.0,3.71633391]
[1770946226923,0.92701604,1943.8,1943.0,2.78066285]
[1770946227932,0.92701604,1943.8,1943.1,0.001]
[1770946228342,1.28612486,1943.9,1943.1,0.001]
[1770946228635,0.1044,1944.2,1943.1,0.001]
[1770946228636,1.28792172,1944.2,1943.2,0.93567106]
[1770946228841,1.28787934,1944.2,1943.2,0.93567106]
[1770946230945,0.002,1944.2,1943.3,2.24164299]
[1770946231644,0.002,1944.2,1943.5,0.95517153]
[1770946231824,0.002,1944.2,1943.7,0.95517153]
[1770946232024,0.002,1944.3,1943.7,0.95517153]
[1770946232025,0.002,1944.5,1943.7,0.95517153]
[1770946233040,0.002,1944.5,1943.8,2.24131207]
[1770946233842,0.002,1944.5,1943.9,0.96312472]
[1770946234426,0.002,1945.0,1943.9,0.96312472]
[1770946235115,0.002,1945.0,1944.1,0.96312472]
[1770946235313,0.002,1945.0,1944.2,2.45312472]
[1770946235514,0.95223215,1945.0,1944.0,2.77600823]
[1770946235831,0.95223215,1945.0,1944.0,3.73913295]
[1770946236616,0.002,1945.0,1944.1,0.96312472]
[1770946237142,0.002,1945.0,1944.3,0.96312472]
[1770946239442,0.002,1945.0,1944.4,1.28574367]
[1770946239613,0.002,1945.0,1944.5,2.45212472]
[1770946240926,0.002,1944.9,1944.5,2.45212472]
[1770946241852,0.002,1945.1,1944.7,0.96312472]
[1770946242017,0.002,1945.3,1944.7,0.96312472]
[1770946242417,0.002,1945.5,1944.7,0.96312472]
[1770946242803,0.002,1945.8,1944.8,0.96312472]
[1770946243893,0.002,1945.8,1945.0,0.96312472]
[1770946244051,0.002,1945.8,1945.2,0.96312472]
[1770946244259,0.002,1945.8,1945.3,0.96312472]
[1770946244923,0.95023215,1947.3,1945.4,0.96312472]
[1770946245197,0.95023215,1947.2,1945.8,0.96312472]
[1770946245488,0.95023215,1947.0,1945.9,1.493]
[1770946245798,0.95023215,1947.0,1946.0,1.28468653]
[1770946245799,1.28409266,1946.9,1946.0,1.28468653]
[1770946245996,1.28407755,1947.0,1946.0,2.24781125]
[1770946247672,3.4890099,1947.4,1946.1,0.96312472]
[1770946247892,2.23406535,1947.3,1946.3,0.96312472]
[1770946248074,2.23406535,1947.3,1946.4,1.496]
[1770946248264,0.95023215,1947.2,1946.4,1.496]
[1770946248461,1.2838332,1947.3,1946.4,1.496]
[1770946248660,2.23406535,1947.3,1946.4,1.496]
[1770946248863,0.95023215,1947.2,1946.4,1.496]
[1770946249598,1.2838332,1947.3,1946.4,1.496]
[1770946249980,0.95023215,1947.3,1946.5,1.28435653]
[1770946251695,0.95023215,1947.1,1946.4,1.496]
[1770946251999,0.95023215,1946.9,1946.1,2.21157309]
[1770946252403,0.95023215,1946.9,1946.1,0.927]
[1770946252869,0.95023215,1946.9,1945.8,1.495]
[1770946253070,0.95023215,1946.9,1945.6,7.02980985]
[1770946253071,0.95023215,1946.5,1945.6,0.927]
[1770946253505,0.95023215,1946.3,1945.4,1.495]
[1770946253685,0.95023215,1946.1,1945.4,1.495]
[1770946254021,2.23491868,1946.0,1945.4,1.495]
[1770946254158,2.23491868,1946.0,1945.1,1.28525222]
[1770946254903,1.28468653,1946.0,1945.1,1.28525222]
[1770946255313,1.28468653,1946.0,1945.1,2.24837694]
[1770946256424,2.23478666,1946.2,1945.1,2.24837694]
[1770946258783,0.95023215,1946.1,1945.1,2.24837694]
[1770946260411,2.20810573,1946.0,1945.1,1.28525222]
[1770946260578,0.9234192,1945.9,1945.0,1.495]
[1770946260780,0.9234192,1945.7,1944.9,0.926]
[1770946262523,0.9234192,1945.3,1944.6,1.492]
[1770946262913,0.9234192,1945.3,1944.6,2.77761074]
[1770946263614,2.53808275,1945.4,1944.6,2.77761074]
[1770946263915,1.28506812,1945.5,1944.6,3.75865012]
[1770946264887,5.13981091,1945.6,1944.6,3.75865012]
[1770946265613,0.9234192,1945.5,1945.0,0.001]
[1770946265992,1.28495065,1945.6,1945.0,0.001]
[1770946267723,0.9234192,1945.5,1945.0,0.001]
[1770946269792,1.28508275,1945.4,1945.0,0.001]
[1770946270317,2.20850195,1945.4,1945.0,0.001]
[1770946270720,0.9234192,1945.2,1944.3,1.28678497]
[1770946271920,0.9234192,1945.0,1944.3,0.001]
[1770946272122,1.254,1944.9,1944.3,0.001]
[1770946272894,0.9234192,1944.8,1944.3,0.001]
[1770946274015,1.28554532,1944.7,1944.3,0.001]
[1770946274212,2.20896452,1944.7,1944.3,0.001]
[1770946277227,1.28554532,1944.7,1944.3,0.001]
[1770946277733,1.28554532,1944.7,1944.4,0.001]
[1770946278219,5.14194222,1944.8,1944.4,0.001]
[1770946278617,6.06536142,1944.8,1944.4,0.001]
[1770946279227,6.06536142,1944.8,1944.2,0.001]
[1770946279228,0.9234192,1944.7,1944.2,0.001]
[1770946280230,2.20903063,1944.6,1944.2,0.001]
[1770946280438,1.262,1944.5,1944.2,0.001]
[1770946281413,0.9234192,1945.1,1944.2,0.001]
[1770946281611,1.28534704,1945.0,1944.2,0.98203938]
[1770946282340,1.28534704,1945.0,1944.3,1.2858098]
[1770946282541,1.263,1945.1,1944.4,0.98103938]
[1770946283110,2.54828627,1945.1,1944.4,0.98103938]
[1770946283553,1.263,1945.1,1944.4,0.98103938]
[1770946284373,2.21220283,1945.3,1944.4,0.98103938]
[1770946284713,2.21220283,1945.3,1944.5,2.26671693]
[1770946284939,2.21216396,1945.3,1944.5,2.26671693]
[1770946285451,2.21216396,1945.3,1944.5,0.98103938]
[1770946285830,2.21216396,1945.3,1944.3,1.28576472]
[1770946285831,3.13558316,1945.3,1944.3,1.28576472]
[1770946286032,0.9234192,1945.2,1944.3,1.28576472]
[1770946287431,1.28528096,1945.1,1944.3,1.28576472]
[1770946287739,1.28528096,1945.1,1944.2,2.45803938]
[1770946287955,2.20870016,1945.1,1944.2,1.477]
[1770946288149,2.20870016,1945.1,1944.2,2.76287539]
[1770946288350,1.28528096,1945.1,1944.3,0.98103938]
[1770946289065,1.28526687,1945.2,1944.3,0.98103938]
[1770946289241,16.542,1945.7,1944.3,0.98103938]
[1770946289242,16.20507735,1945.7,1944.3,0.98103938]
[1770946289568,2.54795065,1945.6,1944.5,0.98103938]
[1770946290687,2.54795065,1945.6,1944.3,0.001]
[1770946290688,0.96948686,1945.3,1944.3,0.001]
[1770946290864,0.002,1945.0,1944.3,0.001]
[1770946291063,0.97148686,1945.0,1944.3,0.001]
[1770946291359,0.96948686,1944.9,1944.3,0.001]
[1770946291536,2.54847922,1944.8,1944.3,0.001]
[1770946292354,3.51796608,1944.8,1944.3,0.001]
[1770946292946,1.263,1944.8,1944.3,0.001]
[1770946293379,1.2873836,1945.0,1944.3,0.001]
[1770946294677,0.002,1945.0,1944.3,0.001]
[1770946297364,0.002,1945.0,1944.3,0.91800053]
[1770946297765,0.002,1945.0,1944.4,1.28574367]
[1770946299784,0.94474243,1945.0,1944.3,0.001]
[1770946300081,0.002,1945.0,1944.3,0.001]
[1770946301580,0.002,1945.0,1944.3,0.91800053]
[1770946301883,0.002,1945.0,1944.5,0.91700053]
[1770946302255,0.002,1945.0,1944.5,2.38700053]
[1770946302456,0.002,1945.0,1944.6,0.91700053]
[1770946303753,0.002,1945.0,1944.7,1.28554532]
[1770946304158,0.002,1944.9,1944.7,1.28554532]
[1770946304924,0.002,1945.1,1944.7,2.20254585]
[1770946305890,0.002,1945.1,1944.7,1.28554532]
[1770946307779,0.002,1945.1,1944.6,5.14218131]
[1770946309931,0.002,1945.1,1944.8,1.28547922]
[1770946313797,1.28691949,1945.7,1944.9,1.481]
[1770946315014,1.28691949,1945.7,1945.0,1.28534704]
[1770946316269,2.22966192,1945.7,1945.0,1.28534704]
[1770946316806,0.002,1945.6,1945.0,1.28534704]
[1770946318700,0.002,1945.6,1944.9,1.482]
[1770946319522,0.002,1945.6,1944.9,0.001]
[1770946319691,0.002,1945.6,1944.9,1.482]
[1770946319893,0.94474243,1945.6,1944.9,1.482]
[1770946320719,0.94474243,1945.6,1944.9,0.001]
[1770946321724,2.27137095,1945.5,1944.9,0.001]
[1770946322219,0.002,1945.6,1944.9,0.97277752]
[1770946324212,0.002,1945.6,1945.0,1.28534704]
[1770946325697,0.98835425,1945.6,1944.9,2.25813692]
[1770946326445,0.002,1945.6,1944.9,2.25813692]
[1770946327108,0.002,1945.6,1945.0,0.97177752]
[1770946327744,0.002,1945.7,1945.0,0.97177752]
[1770946328906,0.002,1945.7,1945.1,2.25705848]
[1770946329130,0.002,1945.7,1945.2,1.48]
[1770946329697,0.002,1945.5,1945.2,1.48]
[1770946330435,0.002,1945.5,1945.1,2.76628096]
[1770946331600,0.002,1945.5,1945.1,1.481]
[1770946331799,0.002,1945.5,1945.0,1.482]
[1770946332245,0.98835425,1945.5,1944.9,0.001]
[1770946333431,0.002,1945.5,1944.9,0.97277752]
[1770946336029,0.002,1945.5,1945.1,0.97177752]
[1770946336229,0.002,1945.8,1945.3,0.97177752]
[1770946336704,0.002,1945.8,1945.3,0.97177752]
[1770946338245,0.002,1945.8,1945.4,2.25686027]
[1770946340949,0.002,1946.4,1945.6,0.97177752]
[1770946341258,0.002,1946.4,1945.4,1.28508275]
[1770946341259,0.002,1946.4,1945.8,0.97177752]
[1770946341413,0.002,1946.4,1945.9,0.97177752]
[1770946342255,2.27025159,1947.2,1945.9,0.97177752]
[1770946342431,2.27025159,1947.2,1946.1,0.97177752]
[1770946342741,2.27025159,1947.2,1946.3,0.97177752]
[1770946342953,0.98635425,1947.1,1946.0,1.28468653]
[1770946343244,0.002,1946.6,1946.1,1.485]
[1770946343609,0.002,1946.6,1946.1,2.45677752]
[1770946343839,0.002,1946.6,1946.2,0.97177752]
[1770946344418,0.002,1946.6,1946.3,1.28448851]
[1770946344615,0.002,1946.6,1946.3,2.25626603]
[1770946345254,2.27022681,1947.3,1946.3,2.25626603]
[1770946345850,2.27019945,1947.3,1946.3,2.25626603]
[1770946347054,0.98635425,1947.2,1946.3,2.25626603]
[1770946347257,0.98635425,1947.2,1946.3,1.28448851]
[1770946347566,0.98635425,1947.2,1946.0,2.21064173]
[1770946347852,0.98635425,1947.2,1946.3,1.487]
[1770946348146,0.98635425,1947.0,1945.8,5.13919194]
[1770946348311,0.98635425,1947.0,1946.0,1.487]
[1770946349150,0.98635425,1946.7,1945.7,1.487]
[1770946351353,0.97658031,1946.5,1945.7,2.7718413]
[1770946353070,0.97658031,1946.5,1945.7,1.487]
[1770946353231,0.93910554,1946.3,1945.7,1.487]
[1770946354832,1.28433068,1946.6,1945.7,3.75528487]
[1770946355052,0.002,1946.4,1945.7,3.75528487]
[1770946355636,0.002,1946.4,1945.8,0.9834284]
[1770946357266,0.002,1946.4,1945.7,1.487]
[1770946357267,0.94110554,1946.4,1945.7,1.487]
[1770946357467,0.002,1946.4,1945.7,1.486]
[1770946357668,0.002,1946.4,1945.7,2.4694284]
[1770946357972,1.28642804,1946.4,1945.7,1.486]
[1770946359029,0.002,1946.4,1945.7,1.486]
[1770946359231,0.002,1946.4,1945.8,0.9834284]
[1770946359535,0.002,1946.4,1945.9,1.28475255]
[1770946360153,0.94110554,1946.4,1945.7,1.486]
[1770946360359,0.94110554,1946.4,1945.7,2.77083215]
[1770946360678,0.94110554,1946.4,1945.7,1.486]
[1770946360831,0.94110554,1946.4,1945.5,0.001]
[1770946361229,0.93910554,1946.2,1945.5,0.001]
[1770946361646,0.93910554,1946.0,1945.5,0.001]
[1770946364284,1.28475255,1945.9,1945.5,0.001]
[1770946365581,2.22385809,1945.9,1945.5,0.001]
[1770946365952,1.28471897,1946.0,1945.5,0.001]
[1770946366567,0.93910554,1946.0,1945.5,0.001]
[1770946368292,0.93910554,1946.0,1945.6,0.001]
[1770946368661,1.28475255,1945.9,1945.6,0.001]
[1770946368868,2.22385809,1945.9,1945.6,0.001]
[1770946370070,2.22385809,1945.9,1945.4,0.001]
[1770946370071,0.93910554,1945.8,1945.4,0.001]
[1770946370290,0.93910554,1945.8,1945.1,0.001]
[1770946370587,0.93910554,1945.8,1945.1,1.28627681]
[1770946370767,1.28488461,1945.7,1945.1,0.001]
[1770946370965,2.53683624,1945.8,1945.1,0.001]
[1770946371283,1.28483624,1945.8,1945.1,0.001]
[1770946371484,0.93910554,1945.7,1945.1,0.001]
[1770946373089,1.28495065,1945.6,1945.1,0.001]
[1770946373877,0.93910554,1945.7,1945.1,0.001]
[1770946374187,3.47688741,1945.9,1945.1,0.9844284]
[1770946374688,2.22388741,1945.9,1945.1,0.9844284]
[1770946374987,1.253,1946.0,1945.1,0.9844284]
[1770946375155,1.253,1946.0,1945.2,2.26864328]
[1770946376274,2.53768783,1946.0,1945.2,2.26864328]
[1770946376584,1.253,1946.0,1945.2,2.26864328]
[1770946376791,1.28458751,1946.2,1945.3,0.9834284]
[1770946377289,1.28458751,1946.2,1945.4,2.26851115]
[1770946377589,2.22369305,1946.2,1945.4,2.26851115]
[1770946377773,0.93910554,1946.1,1945.3,1.28509943]
[1770946377994,0.93910554,1946.1,1945.3,2.76309943]
[1770946378997,0.93910554,1946.1,1945.3,1.478]
[1770946379396,1.28468653,1946.0,1945.2,1.28516072]
[1770946379602,2.22379207,1946.0,1945.2,2.76316072]
[1770946380902,0.91191073,1945.9,1945.2,2.76316072]
[1770946381079,0.91191073,1945.9,1945.2,0.001]
[1770946381482,0.91191073,1945.7,1945.2,0.001]
[1770946382787,0.91191073,1945.5,1945.1,0.001]
[1770946382990,0.91191073,1945.4,1944.9,0.001]
[1770946383191,0.91191073,1945.4,1944.8,0.001]
[1770946384306,0.91191073,1945.2,1944.8,0.001]
[1770946385703,1.28514882,1945.3,1944.6,0.001]
[1770946385704,0.91191073,1945.0,1944.6,0.001]
[1770946386078,2.19705955,1945.3,1944.6,0.001]
[1770946386484,0.91191073,1945.1,1944.6,0.001]
[1770946387182,0.91191073,1944.9,1944.6,0.001]
[1770946388208,1.28547922,1944.8,1944.6,0.001]
[1770946388408,2.19738995,1944.8,1944.6,0.001]
[1770946389122,2.19738995,1944.8,1944.4,0.001]
[1770946390020,0.91191073,1944.7,1944.4,0.001]
[1770946390382,1.28561143,1944.6,1944.4,0.001]
[1770946392017,2.19752216,1944.6,1944.4,0.001]
[1770946392418,1.28559544,1944.7,1944.4,0.001]
[1770946392791,3.45650617,1944.7,1944.4,0.001]
[1770946393410,3.45650617,1944.7,1944.5,0.001]
[1770946393726,1.259,1944.7,1944.5,0.001]
[1770946395034,3.45646279,1944.7,1944.5,0.001]
[1770946395209,3.45845986,1944.7,1944.5,0.001]
[1770946395531,2.54654913,1944.7,1944.5,0.001]
[1770946396009,3.45845986,1944.7,1944.5,0.001]
[1770946396207,3.45845986,1944.7,1944.3,0.001]
[1770946398856,1.261,1944.7,1944.3,0.001]
[1770946399054,1.265,1944.9,1944.4,0.97509309]
[1770946399351,1.265,1944.9,1944.3,0.001]
[1770946401439,1.28547922,1944.8,1944.3,0.001]
[1770946402939,0.91191073,1944.7,1944.3,0.001]
[1770946403638,2.19752216,1944.6,1944.3,0.001]
[1770946404034,3.46452216,1944.6,1944.3,0.001]
[1770946405812,3.46452216,1944.6,1944.4,0.001]
[1770946406105,3.46452216,1944.6,1944.2,0.001]
[1770946408043,0.91191073,1944.4,1944.0,0.001]
[1770946408250,1.274,1944.3,1944.0,0.001]
[1770946408650,1.274,1944.3,1943.6,0.97609309]
[1770946408838,2.18591073,1944.3,1943.6,0.97609309]
[1770946409752,1.274,1944.3,1943.6,0.97609309]
[1770946410050,1.28577659,1944.4,1943.7,0.97509309]
[1770946410223,1.275,1944.4,1943.7,0.97509309]
[1770946412059,1.28587593,1944.2,1943.6,0.001]
[1770946412231,2.26897877,1944.2,1943.6,0.001]
[1770946412644,8.15021054,1944.1,1943.6,0.001]
[1770946412829,1.276,1944.1,1943.6,0.001]
[1770946415364,1.28600823,1944.0,1943.6,0.001]
[1770946416364,6.41983836,1944.1,1943.6,0.001]
[1770946416365,2.56199338,1944.1,1943.6,0.001]
[1770946416660,2.56199338,1944.1,1943.6,0.91690623]
[1770946416661,1.276,1944.1,1943.6,0.91690623]
[1770946416866,0.1024,1944.6,1943.6,0.91690623]
[1770946417068,1.279,1944.5,1943.6,0.91690623]
[1770946417677,2.56468619,1944.5,1943.8,0.91590623]
[1770946418449,0.929,1944.8,1944.0,0.91590623]
[1770946418450,1.28748452,1944.8,1944.0,0.91590623]
[1770946418755,1.279,1944.7,1944.0,0.91590623]
[1770946419545,1.28561143,1944.6,1944.0,2.2019028]
[1770946419871,2.5645995,1944.7,1944.0,2.2019028]
[1770946420182,1.279,1944.7,1944.1,0.91590623]
[1770946420884,0.002,1944.8,1944.1,0.91590623]
[1770946421778,0.002,1944.8,1944.2,1.28587593]
[1770946422088,0.002,1944.8,1944.4,0.91590623]
[1770946425191,0.002,1944.8,1944.6,0.91590623]
[1770946425391,0.002,1945.1,1944.8,0.91590623]
[1770946427790,0.002,1945.1,1944.6,0.91590623]
[1770946428203,0.002,1945.7,1944.5,0.91590623]
[1770946429605,0.002,1945.0,1944.7,0.91590623]
[1770946429770,0.002,1945.1,1944.8,2.37290623]
[1770946431510,0.002,1945.1,1944.9,1.28541313]
[1770946437401,0.002,1945.1,1944.8,1.28542597]
[1770946437731,0.002,1945.1,1944.8,1.465]
[1770946438142,0.92537641,1945.1,1944.5,1.28565103]
[1770946438442,0.92537641,1945.1,1944.5,2.75065103]
[1770946439308,2.21065973,1945.1,1944.5,2.75065103]
[1770946439649,0.92537641,1945.1,1944.5,2.75065103]
[1770946440346,2.21066709,1945.1,1944.5,2.75065103]
[1770946440514,0.92537641,1945.1,1944.5,2.75065103]
[1770946441642,0.002,1945.1,1944.5,2.75065103]
[1770946441846,0.002,1945.1,1944.6,0.98686719]
[1770946442209,2.22758112,1945.7,1944.7,0.98586719]
[1770946442414,2.22758112,1945.7,1944.9,0.98586719]
[1770946442611,0.002,1945.7,1945.0,0.98586719]
[1770946442847,0.002,1945.7,1945.2,0.98586719]
[1770946443042,0.002,1945.7,1945.4,0.98586719]
[1770946443243,0.002,1945.7,1945.5,2.45386719]
[1770946443629,0.002,1946.0,1945.6,0.98586719]
[1770946445248,1e-08,1946.1,1945.7,2.2707518]
[1770946445431,1e-08,1946.1,1945.8,0.98586719]
[1770946446457,1e-08,1946.1,1945.6,1.28489889]
[1770946446666,1e-08,1946.1,1945.6,1.469]
[1770946447422,1e-08,1946.1,1944.9,2.27128032]
[1770946447423,0.94064557,1946.1,1944.9,2.27128032]
[1770946447621,0.94064557,1946.1,1945.1,0.98586719]
[1770946449937,0.94064556,1945.9,1945.1,1.28523372]
[1770946450759,30.0,1945.8,1944.6,0.98686719]
[1770946450922,0.94064556,1945.7,1944.7,1.468]
[1770946451655,0.94064556,1945.7,1944.7,2.45386719]
[1770946451865,2.22559621,1945.6,1944.8,1.28547922]
[1770946452036,0.94064556,1945.5,1944.8,1.28547922]
[1770946452453,0.94064556,1945.5,1944.7,2.75354256]
[1770946452955,0.94064556,1945.5,1944.7,1.468]
[1770946453176,0.94064556,1945.5,1944.7,2.75354432]
[1770946454463,2.22571848,1945.5,1944.8,0.001]
[1770946456162,1.28500246,1945.6,1944.8,0.001]
[1770946456364,0.94064556,1945.9,1944.8,0.98686719]
[1770946456558,3.48839811,1945.9,1944.8,0.98686719]
[1770946458074,2.20364556,1945.9,1944.8,0.98686719]
[1770946458579,0.94064556,1945.8,1944.9,2.27128032]
[1770946458783,0.94064556,1945.8,1944.9,1.28541313]
[1770946459091,0.94064556,1945.8,1944.8,0.001]
[1770946459295,0.94064556,1945.8,1944.8,1.28647688]
[1770946459454,0.94064556,1945.8,1944.8,0.001]
[1770946459776,2.54778963,1945.9,1944.8,0.001]
[1770946459777,0.94064556,1945.6,1944.8,1.28646477]
[1770946460582,1.2850167,1945.5,1944.8,0.001]
[1770946461383,0.94064556,1945.8,1944.8,0.98686719]
[1770946461684,1.28486969,1945.8,1944.8,0.98686719]
[1770946462180,2.22551525,1945.8,1944.8,0.98686719]
[1770946462383,0.94064556,1945.7,1944.8,0.001]
[1770946462551,1.28495065,1945.6,1944.8,0.001]
[1770946463169,2.22559621,1945.6,1944.8,0.001]
[1770946463656,0.002,1946.0,1944.8,0.98686719]
[1770946463657,2.22738255,1946.0,1944.8,0.98686719]
[1770946464755,0.002,1946.0,1945.0,0.98586719]
[1770946464951,0.002,1946.0,1945.2,0.98586719]
[1770946466897,0.002,1946.0,1945.4,0.98586719]
[1770946467069,0.002,1946.0,1945.4,1.91286719]
[1770946467277,0.002,1946.0,1945.6,0.98586719]
[1770946468989,0.002,1946.0,1945.7,1.28488461]
[1770946469320,0.002,1946.0,1945.7,2.2707518]
[1770946470715,0.002,1946.4,1945.7,2.2707518]
[1770946470909,0.002,1946.4,1945.8,0.92166674]
[1770946471107,0.002,1946.4,1945.7,1.28488461]
[1770946471108,0.002,1946.4,1945.9,2.38966674]
[1770946471418,0.002,1946.4,1946.0,0.92166674]
[1770946473598,0.002,1946.4,1946.1,1.28462052]
[1770946475123,0.002,1946.4,1946.1,2.20184381]
[1770946475431,0.002,1946.9,1946.2,0.91722329]
[1770946475587,0.002,1946.9,1946.3,3.6717118]
[1770946476021,0.002,1946.9,1946.3,2.75448851]
[1770946476801,0.99296006,1946.9,1946.2,1.28450279]
[1770946477106,0.99296006,1946.9,1946.4,1.471]
[1770946477713,0.002,1946.9,1946.4,2.38822329]
[1770946477916,0.002,1946.9,1946.4,3.67263978]
[1770946478116,0.002,1946.8,1946.4,3.67263978]
[1770946478307,0.002,1946.8,1946.4,2.75541649]
[1770946478502,0.002,1946.8,1946.4,1.471]
[1770946478719,0.002,1946.8,1946.4,2.75541815]
[1770946479125,0.002,1946.8,1946.4,1.471]
[1770946480023,0.002,1946.8,1946.4,3.67264072]
[1770946480819,0.002,1946.8,1946.5,0.91722329]
[1770946481204,0.002,1946.8,1946.4,2.75541743]
[1770946481404,0.002,1946.8,1946.5,1.473]
[1770946482018,0.002,1946.8,1946.5,2.75730003]
[1770946482722,0.002,1946.8,1946.5,1.474]
[1770946484135,0.002,1946.8,1946.6,1.28429055]
[1770946484603,0.002,1946.8,1946.5,2.75831261]
[1770946488942,0.002,1946.8,1946.5,1.474]
[1770946489243,0.002,1946.8,1946.5,2.75834272]
[1770946490743,0.99096006,1947.2,1946.5,2.75834272]
[1770946492946,0.99096006,1947.1,1946.5,2.75834272]
[1770946493146,2.27495178,1947.1,1946.5,2.75834272]
[1770946493324,0.99096006,1947.1,1946.5,2.75834272]
[1770946493518,2.27492115,1947.1,1946.5,2.75834272]
[1770946493841,0.99096006,1947.0,1946.6,1.488]
[1770946494423,0.99096006,1947.0,1946.5,1.489]
[1770946494624,0.99096006,1947.0,1946.4,0.001]
[1770946495244,0.99096006,1946.6,1946.4,0.001]
[1770946496148,2.27517154,1946.8,1946.4,0.001]
[1770946496522,0.99096006,1946.7,1946.4,0.001]
[1770946497449,2.27519834,1946.7,1946.4,0.001]
[1770946500338,2.27519834,1946.7,1945.9,6.05612117]
[1770946500339,0.99096006,1946.6,1945.9,1.483]
[1770946500639,0.9040971,1947.0,1946.0,0.94372119]
[1770946502134,1.28409266,1946.9,1946.5,0.001]
[1770946502335,2.18818976,1946.9,1946.5,0.001]
[1770946502537,0.9040971,1946.9,1946.5,0.001]
[1770946503867,0.9040971,1946.9,1946.4,0.001]
[1770946504464,2.18825571,1946.8,1946.4,0.001]
[1770946505135,0.9040971,1946.7,1946.4,0.001]
[1770946506276,1.2840267,1947.0,1946.4,0.001]
[1770946508376,1.2840267,1947.0,1946.4,1.28542252]
[1770946508673,2.1881238,1947.0,1946.4,0.001]
[1770946511185,2.1841738,1947.0,1946.4,0.001]
[1770946511483,0.9040971,1946.9,1946.4,0.001]
[1770946512567,0.9040971,1946.7,1946.4,0.001]
[1770946514183,1.265,1946.8,1946.4,0.001]
[1770946514481,1.2537,1946.8,1946.4,0.001]
[1770946514653,2.53788368,1946.8,1946.4,0.001]
[1770946515181,3.44198078,1946.8,1946.4,0.001]
[1770946515357,0.9040971,1946.7,1946.5,0.001]
[1770946515557,0.002,1946.6,1946.0,1.28465942]
[1770946515757,0.8994871,1946.6,1946.0,1.28465942]
[1770946515996,0.002,1946.7,1946.0,1.28465942]
[1770946516302,0.002,1946.7,1946.0,2.22838061]
[1770946516671,0.9060971,1946.7,1946.0,2.22838061]
[1770946518996,1.28429055,1946.6,1945.9,1.28472438]
[1770946519195,2.18838765,1946.6,1945.9,1.28472438]
[1770946520466,2.18274765,1946.6,1945.9,1.28472438]
[1770946520670,2.18274765,1946.6,1945.8,7.55787306]
[1770946520671,2.18274765,1946.6,1945.8,3.70347844]
[1770946521268,0.9040971,1946.5,1945.8,0.94372119]
[1770946521510,0.9040971,1946.5,1945.8,3.70351897]
[1770946522217,0.9040971,1946.5,1945.8,2.75979778]
[1770946522719,0.9040971,1946.5,1945.6,1.2859389]
[1770946523175,0.9040971,1946.3,1945.6,1.2859389]
[1770946524674,0.9040971,1946.3,1945.6,0.001]
[1770946524675,0.9040971,1946.2,1945.6,0.001]
[1770946525194,0.9040971,1946.0,1945.6,0.001]
[1770946526810,0.9008771,1946.0,1945.6,0.001]
[1770946527308,1.28475255,1945.9,1945.6,0.001]
[1770946527689,2.18884965,1945.9,1945.7,0.001]
[1770946528122,2.18505965,1945.9,1945.7,0.001]
[1770946528319,0.9040971,1945.9,1945.7,0.001]
[1770946528520,2.18876854,1946.1,1945.7,0.001]
[1770946528926,0.9040971,1946.0,1945.7,0.001]
[1770946529237,0.9040971,1945.8,1945.5,0.001]
[1770946529419,2.18897855,1945.8,1945.5,0.001]
[1770946530345,0.96591881,1946.0,1945.5,0.001]
[1770946530502,1.28473744,1946.0,1945.5,0.9250515]
[1770946530702,1.28466409,1946.1,1945.5,0.9250515]
[1770946530923,3.52352278,1946.2,1945.5,0.9250515]
[1770946533430,0.91622691,1946.1,1945.5,0.001]
[1770946534326,0.91622691,1945.9,1945.5,0.001]
[1770946535230,1.28468653,1946.0,1945.5,0.001]
[1770946535429,2.20091344,1946.0,1945.5,0.001]
[1770946536136,1.28468653,1946.0,1945.5,0.001]
[1770946536328,6.05497305,1946.1,1945.5,0.001]
[1770946536532,0.91622691,1946.0,1945.5,0.001]
[1770946538547,1.28472889,1946.0,1945.5,0.001]
[1770946540028,1.28466577,1946.1,1945.5,0.90570163]
[1770946540339,1.28442252,1946.4,1945.7,0.90470163]
[1770946540554,2.56541088,1946.5,1945.7,0.90470163]
[1770946540706,0.002,1945.9,1945.7,0.90470163]